fUST/lending_fUST_20250220
["ID","MTS","AMOUNT","RATE_DAILY","PERIOD"]
[353777723,1740040244821,-500.0,0.00013698,2]
[353777724,1740040244830,-500.40779216,0.00013698,2]
[353777725,1740040244839,-500.0,0.00013698,2]
[353777726,1740040244848,-500.0,0.00013698,2]
[353777727,1740040244858,-500.0,0.00013698,2]
[353777728,1740040244868,-500.0,0.00013698,2]
[353777729,1740040244878,-500.0,0.00013698,2]
[353777730,1740040244887,-500.0,0.00013698,2]
[353777731,1740040244897,-500.0,0.00013698,2]
[353777732,1740040244907,-206.1710476,0.00013698,2]
[353777733,1740040244916,-500.0,0.00013698,2]
[353777734,1740040244926,-500.0,0.00013698,2]
[353777735,1740040244935,-440.02390014,0.00013698,2]
[353777752,1740040816199,200.0,8e-05,2]
[353777757,1740041066864,251.187142,9.041e-05,2]
[353777775,1740041432281,-463.2401,0.00011872,2]
[353777776,1740041432293,-400.43107729,0.00011872,2]
[353777777,1740041432303,-1200.0,0.00011972,2]
[353777778,1740041432313,-872.9745632,0.00012105,2]
[353777779,1740041432323,-847.67962803,0.00012559,2]
[353777780,1740041432332,-814.15410702,0.00012659,2]
[353777781,1740041432348,-33.52552101,0.00012659,2]
[353777782,1740041432358,-847.67962803,0.00012759,2]
[353777783,1740041432367,-847.67962803,0.00012859,2]
[353777784,1740041432376,-216.0000907,0.00012878,2]
[353777785,1740041432389,-300.0,0.00012899,2]
[353777786,1740041432398,-557.1710486,0.000129,2]
[353777787,1740041432407,-274.711684,0.000129,2]
[353777788,1740041432417,-154.7577468,0.000129,2]
[353777789,1740041432426,-355.1269712,0.000129,2]
[353777790,1740041432435,-153.0,0.000129,2]
[353777791,1740041432444,-355.207113,0.000129,2]
[353777792,1740041432454,-557.1710486,0.000129,2]
[353777794,1740041432463,-154.7577468,0.000129,2]
[353777795,1740041432472,-560.5098322,0.000129,2]
[353777796,1740041432482,-153.0,0.000129,2]
[353777797,1740041432491,-153.0,0.000129,2]
[353777798,1740041432501,-154.7577468,0.000129,2]
[353777799,1740041432511,-355.207113,0.000129,2]
[353777800,1740041432521,-557.1710486,0.000129,2]
[353777801,1740041432531,-355.207113,0.000129,2]
[353777802,1740041432541,-154.7577468,0.000129,2]
[353777803,1740041432551,-153.0,0.000129,2]
[353777804,1740041432560,-557.1710486,0.000129,2]
[353777805,1740041432570,-355.207113,0.000129,2]
[353777806,1740041432579,-154.7577468,0.000129,2]
[353777807,1740041432589,-154.7577468,0.000129,2]
[353777808,1740041432598,-355.207113,0.000129,2]
[353777809,1740041432607,-557.1710486,0.000129,2]
[353777810,1740041432617,-182.8153853,0.000129,2]
[353777811,1740041432626,-309.7440504,0.000129,2]
[353777812,1740041432635,-1113.7682437,0.000129,2]
[353777813,1740041432645,-153.0,0.000129,2]
[353777814,1740041432654,-154.7234452,0.000129,2]
[353777815,1740041432663,-154.7577468,0.000129,2]
[353777816,1740041432673,-847.67962803,0.00012959,2]
[353777817,1740041432682,-153.7597851,0.00012978,2]
[353777818,1740041432691,-6108.99505414,0.00012999,2]
[353777819,1740041432701,-7802.87558187,0.00013,3]
[353777820,1740041432711,-847.67962803,0.00013059,2]
[353777821,1740041432720,-153.0,0.00013152,2]
[353777822,1740041432729,-847.67962803,0.00013159,2]
[353777823,1740041432739,-847.67962803,0.00013259,2]
[353777824,1740041432749,-153.4618619,0.0001326,2]
[353777825,1740041432758,-154.7577468,0.00013278,2]
[353777826,1740041432767,-154.654842,0.00013278,2]
[353777827,1740041432777,-1200.0,0.00013342,2]
[353777828,1740041432787,-847.67962803,0.00013359,2]
[353777829,1740041432796,-847.67962803,0.00013459,2]
[353777830,1740041432805,-206.18651142,0.00013459,2]
[353777831,1740041432815,-847.67962803,0.00013559,2]
[353777832,1740041432824,-4471.92900794,0.00013598,2]
[353777833,1740041432834,-320.76372137,0.00013599,2]
[353777834,1740041432844,-3000.0,0.000136,2]
[353777835,1740041432854,-13275.78028017,0.00013605,2]
[353777836,1740041432863,-847.67962803,0.00013659,2]
[353777837,1740041432873,-151.0,0.00013662,2]
[353777838,1740041432882,-500.0,0.00013673,2]
[353777839,1740041432892,-205.06783914,0.00013697,2]
[353777840,1740041432901,-500.0,0.00013697,2]
[353777841,1740041432912,-604.67848953,0.00013697,2]
[353777842,1740041432921,-173.27494267,0.00013697,2]
[353777843,1740041432931,-3440.530517,0.00013698,5]
[353777844,1740041432940,-666.24496819,0.00013698,5]
[353777845,1740041432949,-23025.56080419,0.00013698,2]
[353777846,1740041432960,-500.0,0.00013698,2]
[353777847,1740041432969,-600.3257927,0.00013698,2]
[353777848,1740041432979,-500.0,0.00013698,2]
[353777849,1740041432988,-501.0,0.00013698,2]
[353777850,1740041432997,-500.0,0.00013698,2]
[353777851,1740041433007,-500.0,0.00013698,2]
[353777852,1740041433016,-501.89961858,0.00013698,2]
[353777853,1740041433025,-500.0,0.00013698,2]
[353777854,1740041433035,-500.0,0.00013698,2]
[353777855,1740041433045,-500.0,0.00013698,2]
[353777856,1740041433055,-500.0,0.00013698,2]
[353777857,1740041433065,-500.0,0.00013698,2]
[353777858,1740041433075,-501.29319513,0.00013698,2]
[353777859,1740041433085,-500.0,0.00013698,2]
[353777860,1740041433094,-500.0,0.00013698,2]
[353777861,1740041433104,-500.0,0.00013698,2]
[353777862,1740041433114,-500.0,0.00013698,2]
[353777863,1740041433123,-501.12096867,0.00013698,2]
[353777864,1740041433133,-502.27977822,0.00013698,2]
[353777865,1740041433142,-500.0,0.00013698,2]
[353777866,1740041433151,-500.0,0.00013698,2]
[353777867,1740041433161,-500.0,0.00013698,2]
[353777868,1740041433171,-500.0,0.00013698,2]
[353777869,1740041433180,-500.0,0.00013698,2]
[353777870,1740041433189,-502.0,0.00013698,3]
[353777871,1740041433199,-500.0,0.00013698,5]
[353777872,1740041433209,-500.0,0.00013698,2]
[353777873,1740041433219,-168.46613412,0.00013698,2]
[353777874,1740041433228,-500.0,0.00013698,2]
[353777875,1740041433238,-501.82769055,0.00013698,2]
[353777876,1740041433248,-500.0,0.00013698,2]
[353777877,1740041433258,-500.0,0.00013698,2]
[353777878,1740041433267,-500.0,0.00013698,2]
[353777879,1740041433277,-500.0,0.00013698,2]
[353777880,1740041433287,-500.0,0.00013698,2]
[353777881,1740041433297,-500.0,0.00013698,2]
[353777882,1740041433307,-481.05243776,0.00013698,2]
[353777883,1740041433317,-470.70941682,0.00013698,2]
[353777884,1740041433327,-506.73616818,0.00013698,2]
[353777885,1740041433337,-500.0,0.00013698,2]
[353777886,1740041433347,-500.0,0.00013698,2]
[353777887,1740041433357,-500.0,0.00013698,2]
[353777888,1740041433367,-503.21881989,0.00013698,2]
[353777889,1740041433377,-500.0,0.00013698,2]
[353777890,1740041433391,-501.24597653,0.00013698,2]
[353777891,1740041433401,-502.73792129,0.00013698,2]
[353777892,1740041433410,-500.0,0.00013698,2]
[353777893,1740041433419,-323.30390435,0.00013698,2]
[353777894,1740041433429,-500.0,0.00013698,2]
[353777895,1740041433439,-502.79809466,0.00013698,2]
[353777896,1740041433449,-500.0,0.00013698,2]
[353777897,1740041433460,-500.0,0.00013698,2]
[353777898,1740041433470,-500.0,0.00013698,2]
[353777899,1740041433479,-500.0,0.00013698,2]
[353777900,1740041433489,-500.0,0.00013698,2]
[353777901,1740041433498,-501.23111099,0.00013698,2]
[353777902,1740041433508,-500.0,0.00013698,2]
[353777903,1740041433517,-500.0,0.00013698,2]
[353777904,1740041433527,-187.65074797,0.00013698,2]
[353777905,1740041433536,-500.0,0.00013698,2]
[353777906,1740041433546,-500.0,0.00013698,2]
[353777907,1740041433556,-500.0,0.00013698,2]
[353777908,1740041433565,-501.37151388,0.00013698,2]
[353777909,1740041433575,-500.0,0.00013698,2]
[353777910,1740041433585,-501.1669357,0.00013698,2]
[353777911,1740041433595,-550.80876211,0.00013698,2]
[353777912,1740041433604,-500.0,0.00013698,2]
[353777913,1740041433614,-500.0,0.00013698,2]
[353777914,1740041433623,-500.0,0.00013698,2]
[353777915,1740041433633,-500.0,0.00013698,2]
[353777916,1740041433643,-500.0,0.00013698,2]
[353777917,1740041433652,-500.0,0.00013698,2]
[353777918,1740041433662,-500.0,0.00013698,2]
[353777919,1740041433672,-500.0,0.00013698,2]
[353777920,1740041433681,-500.0,0.00013698,2]
[353777921,1740041433690,-500.0,0.00013698,2]
[353777922,1740041433699,-500.0,0.00013698,2]
[353777923,1740041433709,-500.0,0.00013698,2]
[353777924,1740041433718,-500.0,0.00013698,2]
[353777925,1740041433727,-507.29655822,0.00013698,2]
[353777926,1740041433736,-500.0,0.00013698,2]
[353777927,1740041433747,-500.0,0.00013698,2]
[353777928,1740041433756,-500.0,0.00013698,2]
[353777929,1740041433766,-505.0789442,0.00013698,2]
[353777930,1740041433775,-500.0,0.00013698,2]
[353777931,1740041433785,-501.25837839,0.00013698,2]
[353777932,1740041433795,-500.0,0.00013698,2]
[353777933,1740041433805,-500.0,0.00013698,2]
[353777934,1740041433815,-500.0,0.00013698,2]
[353777935,1740041433825,-500.0,0.00013698,2]
[353777936,1740041433835,-500.0,0.00013698,2]
[353777937,1740041433845,-500.0,0.00013698,2]
[353777938,1740041433855,-500.0,0.00013698,2]
[353777939,1740041433864,-500.0,0.00013698,2]
[353777940,1740041433874,-509.68969341,0.00013698,2]
[353777941,1740041433884,-500.0,0.00013698,2]
[353777942,1740041433894,-500.0,0.00013698,2]
[353777943,1740041433904,-500.0,0.00013698,2]
[353777944,1740041433914,-500.0,0.00013698,2]
[353777945,1740041433924,-500.0,0.00013698,2]
[353777946,1740041433934,-501.92399289,0.00013698,2]
[353777947,1740041433944,-500.0,0.00013698,2]
[353777948,1740041433954,-500.0,0.00013698,2]
[353777949,1740041433964,-500.0,0.00013698,2]
[353777950,1740041433974,-500.0,0.00013698,2]
[353777951,1740041433984,-500.0,0.00013698,2]
[353777952,1740041433994,-187.31144215,0.00013698,2]
[353777953,1740041434005,-500.0,0.00013698,2]
[353777954,1740041434015,-500.0,0.00013698,2]
[353777955,1740041434025,-500.0,0.00013698,2]
[353777956,1740041434035,-500.0,0.00013698,2]
[353777957,1740041434045,-500.0,0.00013698,2]
[353777958,1740041434054,-500.0,0.00013698,2]
[353777959,1740041434065,-500.0,0.00013698,2]
[353777960,1740041434074,-500.0,0.00013698,2]
[353777961,1740041434084,-300.84838754,0.00013698,2]
[353777962,1740041434094,-500.0,0.00013698,2]
[353777963,1740041434106,-500.0,0.00013698,2]
[353777964,1740041434116,-635.57,0.00013698,2]
[353777965,1740041434126,-500.0,0.00013698,2]
[353777966,1740041434136,-500.0,0.00013698,2]
[353777967,1740041434146,-503.67977773,0.00013698,2]
[353777968,1740041434155,-500.0,0.00013698,2]
[353777969,1740041434165,-504.16586585,0.00013698,2]
[353777970,1740041434175,-500.0,0.00013698,2]
[353777971,1740041434184,-500.0,0.00013698,2]
[353777972,1740041434193,-501.49154522,0.00013698,2]
[353777973,1740041434203,-500.0,0.00013698,2]
[353777974,1740041434213,-500.0,0.00013698,2]
[353777975,1740041434223,-500.0,0.00013698,2]
[353777976,1740041434233,-500.0,0.00013698,2]
[353777977,1740041434243,-611.93518882,0.00013698,2]
[353777978,1740041434252,-500.0,0.00013698,2]
[353777979,1740041434263,-500.0,0.00013698,2]
[353777980,1740041434273,-500.0,0.00013698,2]
[353777981,1740041434284,-500.0,0.00013698,2]
[353777982,1740041434293,-500.0,0.00013698,2]
[353777983,1740041434303,-500.0,0.00013698,2]
[353777984,1740041434313,-500.0,0.00013698,2]
[353777985,1740041434322,-500.0,0.00013698,2]
[353777986,1740041434333,-500.0,0.00013698,2]
[353777987,1740041434343,-500.0,0.00013698,2]
[353777988,1740041434352,-500.0,0.00013698,2]
[353777989,1740041434362,-500.0,0.00013698,2]
[353777990,1740041434372,-500.0,0.00013698,2]
[353777991,1740041434497,-500.0,0.00013698,2]
[353777992,1740041434521,-500.0,0.00013698,2]
[353777993,1740041434535,-500.0,0.00013698,2]
[353777994,1740041434548,-280.99487322,0.00013698,2]
[353777995,1740041434559,-616.71,0.00013698,2]
[353777996,1740041434570,-500.0,0.00013698,2]
[353777997,1740041434581,-500.0,0.00013698,2]
[353777998,1740041434592,-500.0,0.00013698,2]
[353777999,1740041434603,-500.6366468,0.00013698,2]
[353778000,1740041434613,-500.0,0.00013698,2]
[353778001,1740041434624,-503.40614959,0.00013698,2]
[353778002,1740041434635,-502.9853041,0.00013698,2]
[353778003,1740041434645,-500.66629952,0.00013698,2]
[353778004,1740041434656,-500.0,0.00013698,2]
[353778005,1740041434667,-500.0,0.00013698,2]
[353778006,1740041434677,-502.64,0.00013698,2]
[353778007,1740041434688,-500.0,0.00013698,2]
[353778008,1740041434699,-500.0,0.00013698,2]
[353778009,1740041434711,-500.0,0.00013698,2]
[353778010,1740041434722,-500.0,0.00013698,2]
[353778011,1740041434732,-500.0,0.00013698,2]
[353778012,1740041434743,-505.27644101,0.00013698,2]
[353778013,1740041434755,-500.0,0.00013698,2]
[353778014,1740041434766,-500.0,0.00013698,2]
[353778015,1740041434777,-500.0,0.00013698,2]
[353778016,1740041434787,-500.0,0.00013698,2]
[353778017,1740041434798,-500.0,0.00013698,2]
[353778018,1740041434807,-500.0,0.00013698,2]
[353778019,1740041434817,-500.0,0.00013698,2]
[353778020,1740041434827,-500.0,0.00013698,2]
[353778021,1740041434837,-500.0,0.00013698,2]
[353778022,1740041434847,-516.72231689,0.00013698,2]
[353778023,1740041434857,-500.0,0.00013698,2]
[353778024,1740041434867,-210.25468317,0.00013698,2]
[353778025,1740041434877,-500.0,0.00013698,2]
[353778026,1740041434887,-500.0,0.00013698,2]
[353778027,1740041434897,-500.0,0.00013698,2]
[353778028,1740041434907,-554.11,0.00013698,2]
[353778029,1740041434917,-500.0,0.00013698,2]
[353778030,1740041434927,-507.51062143,0.00013698,2]
[353778031,1740041434937,-500.0,0.00013698,2]
[353778032,1740041434946,-500.0,0.00013698,2]
[353778033,1740041434957,-500.0,0.00013698,2]
[353778034,1740041434967,-500.0,0.00013698,2]
[353778035,1740041434977,-500.0,0.00013698,2]
[353778036,1740041434988,-500.0,0.00013698,2]
[353778037,1740041434999,-500.0,0.00013698,2]
[353778038,1740041435010,-288.88323367,0.00013698,2]
[353778039,1740041435021,-500.0,0.00013698,2]
[353778040,1740041435031,-500.0,0.00013698,2]
[353778041,1740041435041,-500.0,0.00013698,2]
[353778042,1740041435051,-502.37059003,0.00013698,2]
[353778043,1740041435061,-520.33,0.00013698,2]
[353778044,1740041435071,-500.0,0.00013698,2]
[353778045,1740041435081,-548.58,0.00013698,2]
[353778046,1740041435091,-500.0,0.00013698,2]
[353778047,1740041435102,-500.0,0.00013698,2]
[353778048,1740041435112,-500.0,0.00013698,2]
[353778049,1740041435122,-500.0,0.00013698,2]
[353778050,1740041435133,-500.0,0.00013698,2]
[353778051,1740041435143,-500.0,0.00013698,2]
[353778052,1740041435154,-500.0,0.00013698,2]
[353778053,1740041435164,-500.0,0.00013698,2]
[353778054,1740041435174,-500.0,0.00013698,2]
[353778055,1740041435185,-567.03,0.00013698,2]
[353778056,1740041435195,-500.0,0.00013698,2]
[353778057,1740041435206,-500.0,0.00013698,2]
[353778058,1740041435216,-500.0,0.00013698,2]
[353778059,1740041435225,-313.81304192,0.00013698,2]
[353778060,1740041435235,-500.0,0.00013698,2]
[353778061,1740041435246,-500.0,0.00013698,2]
[353778062,1740041435256,-500.0,0.00013698,2]
[353778063,1740041435266,-500.0,0.00013698,2]
[353778064,1740041435276,-522.1428522,0.00013698,2]
[353778065,1740041435285,-500.0,0.00013698,2]
[353778066,1740041435295,-500.0,0.00013698,2]
[353778067,1740041435305,-500.0,0.00013698,2]
[353778068,1740041435315,-500.0,0.00013698,2]
[353778069,1740041435325,-500.0,0.00013698,2]
[353778070,1740041435339,-500.0,0.00013698,2]
[353778071,1740041435349,-500.0,0.00013698,2]
[353778072,1740041435360,-500.0,0.00013698,2]
[353778073,1740041435371,-500.0,0.00013698,2]
[353778074,1740041435381,-500.0,0.00013698,2]
[353778075,1740041435394,-513.74195777,0.00013698,2]
[353778076,1740041435404,-500.0,0.00013698,2]
[353778077,1740041435414,-500.0,0.00013698,2]
[353778078,1740041435424,-500.0,0.00013698,2]
[353778079,1740041435435,-500.0,0.00013698,2]
[353778080,1740041435445,-500.0,0.00013698,2]
[353778081,1740041435456,-500.0,0.00013698,2]
[353778082,1740041435468,-500.0,0.00013698,2]
[353778083,1740041435479,-502.13170062,0.00013698,2]
[353778084,1740041435489,-500.0,0.00013698,2]
[353778085,1740041435501,-500.0,0.00013698,2]
[353778086,1740041435511,-500.0,0.00013698,2]
[353778087,1740041435521,-501.3838639,0.00013698,2]
[353778088,1740041435531,-8296.81,0.00013698,2]
[353778089,1740041435542,-500.0,0.00013698,2]
[353778090,1740041435552,-500.0,0.00013698,2]
[353778091,1740041435562,-500.0,0.00013698,2]
[353778092,1740041435571,-500.0,0.00013698,2]
[353778093,1740041435581,-501.44539442,0.00013698,2]
[353778094,1740041435591,-500.0,0.00013698,2]
[353778095,1740041435602,-500.0,0.00013698,2]
[353778096,1740041435611,-500.0,0.00013698,2]
[353778097,1740041435622,-500.0,0.00013698,2]
[353778098,1740041435631,-500.0,0.00013698,2]
[353778099,1740041435641,-500.0,0.00013698,2]
[353778100,1740041435651,-635.48991678,0.00013698,2]
[353778101,1740041435661,-500.0,0.00013698,2]
[353778102,1740041435672,-684.21,0.00013698,2]
[353778103,1740041435682,-551.34293498,0.00013698,2]
[353778104,1740041435693,-500.0,0.00013698,2]
[353778105,1740041435703,-500.0,0.00013698,2]
[353778106,1740041435713,-508.29520958,0.00013698,2]
[353778107,1740041435723,-500.0,0.00013698,2]
[353778108,1740041435734,-500.0,0.00013698,2]
[353778109,1740041435744,-500.0,0.00013698,2]
[353778110,1740041435753,-374.93804142,0.00013698,2]
[353778111,1740041435763,-162.90443037,0.00013698,2]
[353778112,1740041435773,-500.0,0.00013698,2]
[353778113,1740041435783,-500.0,0.00013698,2]
[353778114,1740041435793,-162.66258253,0.00013698,2]
[353778115,1740041435804,-559.28745731,0.00013698,2]
[353778116,1740041435814,-500.0,0.00013698,2]
[353778117,1740041435823,-500.0,0.00013698,2]
[353778118,1740041435834,-512.76,0.00013698,2]
[353778119,1740041435844,-500.0,0.00013698,2]
[353778120,1740041435855,-500.0,0.00013698,2]
[353778121,1740041435865,-500.0,0.00013698,2]
[353778122,1740041435875,-231.80777619,0.00013698,2]
[353778123,1740041435885,-453.24179891,0.00013698,2]
[353778124,1740041435895,-7611.75,0.00013698,2]
[353778125,1740041435905,-500.0,0.00013698,2]
[353778126,1740041435915,-21707.62,0.00013698,2]
[353778127,1740041435925,-500.0,0.00013698,2]
[353778128,1740041435935,-500.0,0.00013698,2]
[353778129,1740041435946,-902.39,0.00013698,2]
[353778130,1740041435956,-500.0,0.00013698,2]
[353778131,1740041435966,-500.0,0.00013698,2]
[353778132,1740041435976,-500.0,0.00013698,2]
[353778133,1740041435986,-1693.61,0.00013698,2]
[353778134,1740041435996,-500.0,0.00013698,2]
[353778135,1740041436006,-533.3,0.00013698,2]
[353778136,1740041436017,-500.0,0.00013698,2]
[353778137,1740041436027,-500.0,0.00013698,2]
[353778138,1740041436036,-848.2,0.00013698,2]
[353778139,1740041436046,-755.98,0.00013698,2]
[353778140,1740041436056,-500.0,0.00013698,2]
[353778141,1740041436067,-500.0,0.00013698,2]
[353778142,1740041436077,-500.0,0.00013698,2]
[353778143,1740041436087,-500.0,0.00013698,2]
[353778144,1740041436097,-500.0,0.00013698,2]
[353778145,1740041436107,-500.0,0.00013698,2]
[353778146,1740041436118,-500.0,0.00013698,2]
[353778147,1740041436128,-500.0,0.00013698,2]
[353778148,1740041436137,-1119.64,0.00013698,2]
[353778149,1740041436147,-500.0,0.00013698,2]
[353778150,1740041436157,-673.37,0.00013698,2]
[353778151,1740041436167,-500.0,0.00013698,2]
[353778152,1740041436177,-500.0,0.00013698,2]
[353778153,1740041436187,-1738.24,0.00013698,2]
[353778154,1740041436198,-500.0,0.00013698,2]
[353778155,1740041436208,-500.0,0.00013698,2]
[353778156,1740041436218,-2449.94,0.00013698,2]
[353778157,1740041436228,-500.0,0.00013698,2]
[353778158,1740041436238,-505.43319536,0.00013698,2]
[353778159,1740041436248,-509.36,0.00013698,2]
[353778160,1740041436258,-500.0,0.00013698,2]
[353778161,1740041436267,-548.32,0.00013698,2]
[353778162,1740041436277,-500.0,0.00013698,2]
[353778163,1740041436287,-500.0,0.00013698,2]
[353778164,1740041436297,-1919.85,0.00013698,2]
[353778165,1740041436307,-500.0,0.00013698,2]
[353778166,1740041436318,-501.80982463,0.00013698,2]
[353778167,1740041436327,-500.0,0.00013698,2]
[353778168,1740041436337,-581.33,0.00013698,2]
[353778169,1740041436346,-904.68,0.00013698,2]
[353778170,1740041436355,-184.09803848,0.00013698,2]
[353778171,1740041436365,-500.0,0.00013698,2]
[353778172,1740041436375,-500.0,0.00013698,2]
[353778173,1740041436387,-502.77333859,0.00013698,2]
[353778174,1740041436397,-1741.36,0.00013698,2]
[353778175,1740041436407,-500.0,0.00013698,2]
[353778176,1740041436417,-1741.36,0.00013698,2]
[353778177,1740041436427,-500.0,0.00013698,2]
[353778178,1740041436436,-1741.36,0.00013698,2]
[353778179,1740041436445,-1741.36,0.00013698,2]
[353778180,1740041436455,-2007.28,0.00013698,2]
[353778181,1740041436465,-1741.36,0.00013698,2]
[353778182,1740041436475,-1741.36,0.00013698,2]
[353778183,1740041436485,-1741.36,0.00013698,2]
[353778184,1740041436495,-1741.36,0.00013698,2]
[353778185,1740041436506,-770.25,0.00013698,2]
[353778186,1740041436516,-1741.36,0.00013698,2]
[353778187,1740041436526,-1741.36,0.00013698,2]
[353778188,1740041436536,-1741.36,0.00013698,2]
[353778189,1740041436547,-1741.36,0.00013698,2]
[353778190,1740041436556,-1741.36,0.00013698,2]
[353778191,1740041436566,-1741.36,0.00013698,2]
[353778192,1740041436577,-1741.36,0.00013698,2]
[353778193,1740041436587,-1741.36,0.00013698,2]
[353778194,1740041436597,-1741.36,0.00013698,2]
[353778195,1740041436607,-1741.36,0.00013698,2]
[353778196,1740041436617,-1741.36,0.00013698,2]
[353778197,1740041436627,-1741.36,0.00013698,2]
[353778198,1740041436637,-500.0,0.00013698,2]
[353778199,1740041436647,-1741.36,0.00013698,2]
[353778200,1740041436657,-1741.36,0.00013698,2]
[353778201,1740041436667,-1741.36,0.00013698,2]
[353778202,1740041436676,-1741.5559385,0.00013698,2]
[353778203,1740041436686,-501.02897815,0.00013698,2]
[353778204,1740041436696,-500.0,0.00013698,2]
[353778205,1740041436707,-500.0,0.00013698,2]
[353778206,1740041436716,-500.0,0.00013698,2]
[353778207,1740041436726,-1244.19,0.00013698,2]
[353778208,1740041436735,-500.0,0.00013698,2]
[353778209,1740041436745,-556.4,0.00013698,2]
[353778210,1740041436754,-500.0,0.00013698,2]
[353778211,1740041436764,-500.0,0.00013698,2]
[353778212,1740041436774,-500.0,0.00013698,2]
[353778213,1740041436784,-500.0,0.00013698,2]
[353778214,1740041436793,-500.0,0.00013698,2]
[353778215,1740041436803,-500.0,0.00013698,2]
[353778216,1740041436812,-500.0,0.00013698,2]
[353778217,1740041436822,-888.94,0.00013698,2]
[353778218,1740041436832,-500.0,0.00013698,2]
[353778219,1740041436842,-500.0,0.00013698,2]
[353778220,1740041436852,-500.0,0.00013698,2]
[353778221,1740041436862,-500.0,0.00013698,2]
[353778222,1740041436872,-535.69,0.00013698,2]
[353778223,1740041436882,-535.69,0.00013698,2]
[353778224,1740041436891,-535.69,0.00013698,2]
[353778225,1740041436901,-535.69,0.00013698,2]
[353778226,1740041436910,-535.69,0.00013698,2]
[353778227,1740041436920,-535.69,0.00013698,2]
[353778228,1740041436930,-535.69,0.00013698,2]
[353778229,1740041436940,-535.69,0.00013698,2]
[353778230,1740041436950,-500.0,0.00013698,2]
[353778231,1740041436960,-535.69,0.00013698,2]
[353778232,1740041436970,-500.0,0.00013698,2]
[353778233,1740041436979,-535.69,0.00013698,2]
[353778234,1740041436990,-535.69,0.00013698,2]
[353778235,1740041437000,-535.69,0.00013698,2]
[353778236,1740041437010,-535.69,0.00013698,2]
[353778237,1740041437020,-533.32,0.00013698,2]
[353778238,1740041437030,-535.69,0.00013698,2]
[353778239,1740041437040,-535.69,0.00013698,2]
[353778240,1740041437050,-535.69,0.00013698,2]
[353778241,1740041437060,-535.69,0.00013698,2]
[353778242,1740041437070,-535.69,0.00013698,2]
[353778243,1740041437080,-535.69,0.00013698,2]
[353778244,1740041437090,-535.69,0.00013698,2]
[353778245,1740041437100,-535.69,0.00013698,2]
[353778246,1740041437111,-535.69,0.00013698,2]
[353778247,1740041437121,-500.0,0.00013698,2]
[353778248,1740041437132,-535.69,0.00013698,2]
[353778249,1740041437142,-535.69,0.00013698,2]
[353778250,1740041437152,-500.0,0.00013698,2]
[353778251,1740041437162,-500.0,0.00013698,2]
[353778252,1740041437172,-500.0,0.00013698,2]
[353778253,1740041437181,-500.0,0.00013698,2]
[353778254,1740041437191,-500.0,0.00013698,2]
[353778255,1740041437201,-500.0,0.00013698,2]
[353778256,1740041437211,-503.06981649,0.00013698,2]
[353778257,1740041437221,-500.0,0.00013698,2]
[353778258,1740041437231,-2770.2,0.00013698,2]
[353778259,1740041437356,-502.13034368,0.00013698,2]
[353778260,1740041437367,-541.81,0.00013698,2]